bitfinex/quotes_SOLUSD_20250330
["timestamp","ask_amount","ask_price","bid_price","bid_amount"]
[1743327459045,20.0,126.28,126.26,6.64]
[1743327459359,12.60204363,126.29,126.26,6.64]
[1743327459563,12.60204363,126.28,126.26,6.64]
[1743327459753,12.60204363,126.27,126.26,6.64]
[1743327460148,32.60204363,126.28,126.26,6.64]
[1743327461288,80.28204363,126.28,126.26,6.64]
[1743327461475,32.60204363,126.28,126.26,6.64]
[1743327464574,30.45847444,126.28,126.26,6.64]
[1743327464772,12.60204363,126.27,126.26,6.64]
[1743327465274,12.60204363,126.27,126.24,0.063]
[1743327465573,12.60204363,126.25,126.24,0.063]
[1743327482086,60.28204363,126.25,126.24,0.063]
[1743327482280,12.60204363,126.25,126.24,0.063]
[1743327489286,12.60204363,126.26,126.24,0.063]
[1743327490292,0.03,126.28,126.24,7.9844]
[1743327490491,0.03,126.28,126.24,143.4542]
[1743327490795,32.63204363,126.28,126.24,143.4542]
[1743327491181,12.60204363,126.26,126.24,143.4542]
[1743327494894,12.60204363,126.26,126.24,135.5328]
[1743327495587,12.60204363,126.26,126.24,143.4539]
[1743327495789,20.0,126.27,126.24,143.4539]
[1743327496393,32.63204363,126.28,126.24,143.4539]
[1743327497405,12.60204363,126.27,126.24,143.4539]
[1743327499397,20.03,126.28,126.24,135.5328]
[1743327499398,11.60204363,126.25,126.24,135.5328]
[1743327500491,11.60204363,126.25,126.24,0.063]
[1743327515396,75.6291,126.28,126.24,0.063]
[1743327515397,12.60204363,126.26,126.24,0.063]
[1743327517214,12.60204363,126.27,126.24,0.063]
[1743327518609,12.60204363,126.26,126.24,0.063]
[1743327527120,12.63204363,126.27,126.24,0.063]
[1743327530226,0.03,126.27,126.25,18.64964886]
[1743327530420,0.03,126.27,126.26,6.64]
[1743327531345,0.03,126.27,126.26,14.5601]
[1743327531736,0.03,126.27,126.26,33.20974886]
[1743327531941,0.03,126.27,126.26,33.494072]
[1743327535335,0.03,126.27,126.24,80.963]
[1743327535336,12.63204363,126.27,126.24,80.963]
[1743327535640,12.60204363,126.25,126.24,80.963]
[1743327536330,32.60204363,126.26,126.24,80.963]
[1743327536643,12.60204363,126.26,126.24,80.963]
[1743327539246,12.60204363,126.25,126.24,80.963]
[1743327541545,20.52274363,126.25,126.24,0.063]
[1743327541847,12.60204363,126.25,126.24,0.063]
[1743327543143,20.52274363,126.25,126.24,0.063]
[1743327544646,60.28204363,126.25,126.24,0.063]
[1743327545846,68.20274363,126.25,126.24,0.063]
[1743327550248,60.28204363,126.25,126.24,0.063]
[1743327550428,68.20274363,126.25,126.24,0.063]
[1743327550629,60.28204363,126.25,126.24,0.063]
[1743327554831,68.23274363,126.25,126.24,0.063]
[1743327557065,60.31204363,126.25,126.24,0.063]
[1743327558061,68.23274363,126.25,126.24,0.063]
[1743327559362,60.31204363,126.25,126.24,0.063]
[1743327569766,116.74031815,126.24,126.19,135.5328]
[1743327570063,12.60204363,126.2,126.19,0.063]
[1743327574161,12.60204363,126.21,126.19,0.063]
[1743327574554,60.28204363,126.22,126.19,0.063]
[1743327575153,12.60204363,126.21,126.19,0.063]
[1743327578851,12.60204363,126.2,126.19,0.063]
[1743327585383,60.28204363,126.2,126.19,0.063]
[1743327590477,12.60204363,126.21,126.19,0.063]
[1743327590784,12.60204363,126.22,126.19,0.063]
[1743327591780,12.60204363,126.22,126.19,7.9875]
[1743327595988,47.68,126.21,126.19,7.9875]
[1743327596298,12.60204363,126.22,126.19,7.9875]
[1743327600897,0.03,126.23,126.19,27.7988]
[1743327601189,0.03,126.23,126.19,163.2686]
[1743327602183,12.60204363,126.22,126.19,163.2686]
[1743327602789,12.60204363,126.21,126.19,143.4573]
[1743327603477,12.60204363,126.2,126.19,143.4573]
[1743327603774,12.60204363,126.2,126.19,7.9875]
[1743327604592,12.60204363,126.2,126.19,0.063]
[1743327605169,12.60204363,126.2,126.19,7.9875]
[1743327605891,12.60204363,126.21,126.19,7.9875]
[1743327607786,60.28204363,126.2,126.19,0.063]
[1743327610595,20.52594363,126.2,126.19,0.063]
[1743327618803,12.60204363,126.2,126.19,0.063]
[1743327622896,12.60204363,126.21,126.19,0.063]
[1743327625815,12.60204363,126.2,126.19,0.063]
[1743327629420,20.52594363,126.2,126.19,0.063]
[1743327629622,40.52594363,126.2,126.19,0.063]
[1743327633021,88.22594363,126.2,126.19,0.063]
[1743327635622,80.30204363,126.2,126.19,0.063]
[1743327641218,32.60204363,126.2,126.19,0.063]
[1743327641448,20.0,126.2,126.19,0.063]
[1743327644410,32.60204363,126.2,126.19,0.063]
[1743327651026,40.52594363,126.2,126.19,0.063]
[1743327657432,88.22594363,126.2,126.19,0.063]
[1743327667943,80.30204363,126.2,126.19,0.063]
[1743327668245,20.0,126.2,126.19,0.063]
[1743327668824,12.60204363,126.22,126.19,0.063]
[1743327670548,12.60204363,126.22,126.19,7.9875]
[1743327674023,20.03,126.23,126.19,7.9875]
[1743327674847,32.63204363,126.23,126.19,7.9875]
[1743327679462,32.63204363,126.23,126.19,143.4573]
[1743327685542,20.03,126.23,126.19,143.4573]
[1743327688064,32.63204363,126.23,126.19,143.4573]
[1743327693665,40.57704363,126.23,126.19,143.4573]
[1743327693845,32.63204363,126.23,126.19,143.4573]
[1743327701784,20.03,126.23,126.19,143.4573]
[1743327701947,20.03,126.23,126.19,224.3573]
[1743327703177,0.03,126.23,126.19,224.3573]
[1743327713775,12.63204363,126.23,126.19,216.4328]
[1743327714078,12.60204363,126.22,126.19,80.963]
[1743327714378,12.60204363,126.21,126.19,80.963]
[1743327715777,20.52534363,126.21,126.19,80.963]
[1743327716075,12.60204363,126.21,126.19,80.963]
[1743327732590,20.52484363,126.22,126.19,80.963]
[1743327734988,12.60204363,126.21,126.19,80.963]
[1743327737091,7.9228,126.22,126.19,80.963]
[1743327737092,7.9522,126.23,126.19,80.963]
[1743327737294,12.63204363,126.23,126.19,88.8874]
[1743327742391,47.7,126.22,126.19,88.8874]
[1743327742598,12.63204363,126.23,126.19,88.8874]
[1743327752399,20.55424363,126.23,126.19,88.8874]
[1743327752608,12.60204363,126.21,126.19,80.963]
[1743327755914,12.60204363,126.22,126.19,80.963]
[1743327757019,12.63204363,126.23,126.19,88.8873]
[1743327757805,0.03,126.23,126.19,88.8873]
[1743327763206,0.03,126.23,126.2,6.64]
[1743327764523,0.03,126.23,126.2,142.1098]
[1743327765121,0.03,126.23,126.2,150.0331]
[1743327776140,0.03,126.23,126.2,14.5633]
[1743327776640,12.63204363,126.23,126.2,6.64]
[1743327776847,12.60204363,126.21,126.19,87.603]
[1743327778134,12.60204363,126.21,126.2,0.063]
[1743327783145,60.30204363,126.21,126.2,0.063]
[1743327783749,47.7,126.21,126.2,0.063]
[1743327784131,0.03,126.23,126.2,0.063]
[1743327785144,12.63204363,126.23,126.2,0.063]
[1743327785448,12.60204363,126.21,126.2,0.063]
[1743327788962,60.30204363,126.22,126.2,0.063]
[1743327791745,60.30204363,126.21,126.2,0.063]
[1743327793658,68.22534363,126.21,126.2,0.063]
[1743327800541,60.30204363,126.21,126.2,0.063]
[1743327800751,47.7,126.21,126.2,0.063]
[1743327804371,12.60204363,126.21,126.2,0.063]
[1743327804662,60.30204363,126.22,126.2,0.063]
[1743327805859,60.30204363,126.21,126.2,0.063]
[1743327807253,60.30204363,126.22,126.2,0.063]
[1743327809370,12.60204363,126.21,126.2,0.063]
[1743327809965,47.7,126.22,126.2,0.063]
[1743327809966,60.30204363,126.22,126.2,0.063]
[1743327815053,60.30204363,126.21,126.2,0.063]
[1743327822892,60.30204363,126.22,126.2,0.063]
[1743327825301,60.30204363,126.21,126.2,0.063]
[1743327825871,68.22534363,126.21,126.2,0.063]
[1743327831401,76.17434363,126.21,126.2,0.063]
[1743327834497,76.3165052,126.21,126.2,0.063]
[1743327835169,68.3675052,126.21,126.2,0.063]
[1743327835495,76.3165052,126.21,126.2,0.063]
[1743327851003,68.22534363,126.21,126.2,0.063]
[1743327851917,76.17434363,126.21,126.2,0.063]
[1743327852492,68.22534363,126.21,126.2,0.063]
[1743327853110,76.17434363,126.21,126.2,0.063]
[1743327853695,68.22534363,126.21,126.2,0.063]
[1743327854701,68.3675052,126.21,126.2,0.063]
[1743327855711,76.3165052,126.21,126.2,0.063]
[1743327865830,94.96615406,126.21,126.2,0.063]
[1743327866033,66.34964886,126.2,126.19,0.063]
[1743327866204,78.95169249,126.2,126.19,0.063]
[1743327866938,86.87559249,126.2,126.19,0.063]
[1743327867116,137.30886701,126.19,126.18,0.063]
[1743327869033,145.23336701,126.19,126.18,0.063]
[1743327870026,145.37552858,126.19,126.18,0.063]
[1743327876952,118.77687972,126.19,126.18,0.063]
[1743327877245,68.22654363,126.19,126.18,0.063]
[1743327879036,60.30204363,126.19,126.18,0.063]
[1743327881556,68.22654363,126.19,126.18,0.063]
[1743327883355,68.25654363,126.19,126.18,0.063]
[1743327888256,76.20554363,126.19,126.18,0.063]
[1743327888582,68.25654363,126.19,126.18,0.063]
[1743327892084,76.20554363,126.19,126.18,0.063]
[1743327893282,126.61371815,126.19,126.18,0.063]
[1743327894770,126.75587972,126.19,126.18,0.063]
[1743327896368,145.40552858,126.19,126.18,0.063]
[1743327896684,0.14216157,126.18,126.17,0.063]
[1743327896890,110.85237972,126.18,126.17,0.063]
[1743327897683,126.72647972,126.18,126.17,0.063]
[1743327897983,118.77747972,126.18,126.17,0.063]
[1743327898791,126.72647972,126.18,126.17,0.063]
[1743327899185,118.77747972,126.18,126.17,0.063]
[1743327899891,126.72647972,126.18,126.17,0.063]
[1743327900280,118.63531815,126.18,126.17,0.063]
[1743327900486,68.22714363,126.18,126.17,0.063]
[1743327907204,60.30204363,126.18,126.17,0.063]
[1743327910284,68.22714363,126.18,126.17,0.063]
[1743327911086,60.30204363,126.18,126.17,0.063]
[1743327912405,68.22714363,126.18,126.17,0.063]
[1743327912575,118.77747972,126.18,126.16,0.063]
[1743327912775,60.30204363,126.17,126.16,0.063]
[1743327913397,68.25104363,126.17,126.16,0.063]
[1743327914475,76.17684363,126.17,126.16,0.063]
[1743327915998,68.22784363,126.17,126.16,0.063]
[1743327919386,76.17684363,126.17,126.16,0.063]
[1743327927002,68.22784363,126.17,126.16,0.063]
[1743327928682,60.30204363,126.17,126.16,0.063]
[1743327929499,68.28104363,126.17,126.16,0.063]
[1743327930817,68.25784363,126.17,126.16,0.063]
[1743327939520,76.20684363,126.17,126.16,0.063]
[1743327940194,12.63204363,126.17,126.16,0.063]
[1743327940516,0.03,126.17,126.16,0.063]
[1743327940816,0.03,126.17,126.16,1.5795]
[1743327941817,0.03,126.17,126.16,9.5059]
[1743327942386,0.03,126.17,126.16,145.0059]
[1743327946126,0.03,126.17,126.16,9.5059]
[1743327950217,0.03,126.17,126.16,244.55554886]
[1743327952130,0.03,126.17,126.16,225.9059]
[1743327952328,12.63204363,126.17,126.16,217.9795]
[1743327952536,12.63204363,126.17,126.16,216.463]
[1743327952707,12.63204363,126.17,126.16,80.963]
[1743327956837,0.03,126.17,126.16,88.8894]
[1743327963939,0.03,126.17,126.16,224.3894]
[1743327970850,0.03,126.17,126.16,243.03904886]
[1743327971150,0.03,126.17,126.16,245.19699514]
[1743327972754,0.03,126.19,126.18,154.08964886]
[1743327973052,0.03,126.19,126.18,243.78759514]
[1743327974353,0.03,126.23,126.2,0.28432314]
[1743327974558,0.03,126.23,126.21,0.28432314]
[1743327974855,0.03,126.23,126.22,33.21224886]
[1743327975031,0.03,126.23,126.22,35.085872]
[1743327978348,0.03,126.25,126.23,143.3315]
[1743327978549,0.03,126.25,126.23,224.2315]
[1743327987150,0.03,126.25,126.24,18.64964886]
[1743327987558,0.03,126.25,126.23,216.31]
[1743327988649,12.60204363,126.24,126.23,216.31]
[1743327989031,12.60204363,126.24,126.23,80.9]
[1743327992942,12.60204363,126.24,126.21,143.3332]
[1743327992943,68.24344363,126.24,126.21,135.41]
[1743327993145,32.60204363,126.22,126.2,135.41]
[1743327993765,12.60204363,126.21,126.2,135.41]
[1743327999473,12.60204363,126.21,126.2,135.473]
[1743327999959,12.60204363,126.21,126.2,0.063]
[1743328000573,7.949,126.21,126.2,0.063]
[1743328000782,67.72,126.22,126.2,0.063]
[1743328001274,20.0,126.22,126.2,0.063]
[1743328001454,0.03,126.24,126.2,217.9161]
[1743328002273,0.03,126.24,126.21,18.933972]
[1743328002453,0.03,126.24,126.23,18.64964886]
[1743328002646,0.03,126.24,126.23,234.95964886]
[1743328002849,0.03,126.24,126.23,242.88164886]
[1743328003566,0.03,126.24,126.23,243.165972]
[1743328003869,0.03,126.26,126.25,154.283972]
[1743328004080,0.03,126.26,126.25,155.54274886]
[1743328004872,0.03,126.26,126.25,163.46344886]
[1743328005571,0.03,126.26,126.25,143.2707]
[1743328007672,0.03,126.26,126.25,224.1707]
[1743328007976,0.03,126.26,126.25,216.25]
[1743328008272,0.03,126.26,126.25,224.1707]
[1743328020575,0.03,126.26,126.25,242.82034886]
[1743328023472,0.03,126.26,126.25,243.104672]
[1743328025382,0.03,126.27,126.26,153.96964886]
[1743328025679,0.03,126.27,126.26,249.42974886]
[1743328031984,0.03,126.27,126.26,222.86]
[1743328035689,0.03,126.27,126.26,230.7801]
[1743328035885,0.03,126.27,126.26,224.1401]
[1743328036086,0.03,126.27,126.26,222.86]
[1743328038678,0.03,126.27,126.26,230.7801]
[1743328042106,0.03,126.27,126.26,222.86]
[1743328046310,0.03,126.27,126.26,222.923]
[1743328050118,0.03,126.27,126.26,230.8431]
[1743328051687,0.03,126.27,126.26,249.49274886]
[1743328063721,0.03,126.28,126.26,249.49274886]
[1743328063722,0.03,126.3,126.29,18.64964886]
[1743328063897,0.03,126.3,126.29,234.80964886]
[1743328065597,0.03,126.3,126.29,242.72784886]
[1743328069831,0.03,126.3,126.29,216.16]
[1743328070004,12.63204363,126.3,126.29,216.16]
[1743328073709,12.63204363,126.3,126.29,80.9]
[1743328074133,20.54964363,126.3,126.29,80.9]
[1743328077442,68.26964363,126.3,126.29,80.9]
[1743328079650,20.0,126.28,126.27,135.323]
[1743328079948,81.91444363,126.28,126.27,135.323]
[1743328080125,87.93304363,126.28,126.27,0.063]
[1743328081551,95.85194363,126.28,126.27,0.063]
[1743328086639,95.85194363,126.28,126.26,0.063]
[1743328086845,60.32204363,126.27,126.26,0.063]
[1743328087840,68.27104363,126.27,126.26,0.063]
[1743328088838,76.3327052,126.27,126.26,0.063]
[1743328090833,75.669,126.25,126.24,0.063]
[1743328091029,138.67921815,126.25,126.24,0.063]
[1743328092545,80.32204363,126.25,126.24,0.063]
[1743328093048,60.32204363,126.25,126.24,0.063]
[1743328093424,60.32204363,126.26,126.24,0.063]
[1743328094043,12.60204363,126.25,126.24,0.063]
[1743328094647,20.0,126.25,126.24,0.063]
[1743328096554,32.60204363,126.25,126.24,0.063]
[1743328097957,12.60204363,126.26,126.24,0.063]
[1743328098140,12.60204363,126.27,126.24,0.063]
[1743328098451,12.63204363,126.28,126.24,216.223]
[1743328098655,20.0,126.26,126.25,6.64]
[1743328099260,20.0,126.26,126.25,14.5607]
[1743328099434,32.60204363,126.26,126.25,14.5607]
[1743328099637,32.60204363,126.26,126.25,6.64]
[1743328104754,32.63204363,126.26,126.25,6.64]
[1743328108156,80.35204363,126.26,126.25,6.64]
[1743328109976,0.03,126.26,126.25,14.5607]
[1743328110261,0.03,126.26,126.25,250.97634886]
[1743328121563,0.03,126.26,126.25,251.260672]
[1743328127886,0.03,126.28,126.27,7.9195]
[1743328128074,0.03,126.28,126.27,224.0495]
[1743328129884,0.03,126.28,126.27,216.13]
[1743328130572,0.03,126.28,126.27,224.0495]
[1743328132380,12.16204363,126.31,126.27,224.0495]
[1743328132686,60.35204363,126.32,126.27,224.0495]
[1743328132884,12.60204363,126.31,126.27,224.0495]
[1743328134665,12.60204363,126.3,126.27,224.0495]
[1743328135564,12.60204363,126.31,126.27,224.0495]
[1743328138187,20.0,126.3,126.27,224.0495]
[1743328145791,12.63204363,126.31,126.27,224.0495]
[1743328145981,0.03,126.31,126.28,18.64964886]
[1743328146183,0.03,126.31,126.29,6.64]
[1743328146495,0.03,126.31,126.3,7.9176]
[1743328146670,0.03,126.31,126.3,224.0476]
[1743328148198,12.63204363,126.31,126.3,216.13]
[1743328148905,60.35204363,126.31,126.3,216.13]
[1743328150080,0.03,126.31,126.3,224.0476]
[1743328151195,12.63204363,126.31,126.3,216.13]
[1743328152486,60.35204363,126.31,126.3,80.9]
[1743328153478,68.26904363,126.31,126.3,80.9]
[1743328157206,68.26904363,126.31,126.3,135.5]
[1743328163008,68.26904363,126.31,126.27,143.4825]
[1743328163208,12.60204363,126.29,126.27,143.4825]
[1743328165606,12.60204363,126.29,126.27,135.563]
[1743328169209,47.72,126.28,126.27,135.563]
[1743328169616,60.32204363,126.28,126.27,135.563]
[1743328170699,60.32204363,126.28,126.27,0.063]
[1743328172719,68.24094363,126.28,126.27,0.063]
[1743328176323,60.32204363,126.28,126.27,0.063]
[1743328178229,68.24094363,126.28,126.27,0.063]
[1743328179221,76.18394363,126.28,126.27,0.063]
[1743328181846,68.24094363,126.28,126.27,0.063]
[1743328183337,76.18394363,126.28,126.27,0.063]
[1743328188237,68.24094363,126.28,126.27,0.063]
[1743328189419,76.18394363,126.28,126.27,0.063]
[1743328193632,68.24094363,126.28,126.27,0.063]
[1743328194845,76.18394363,126.28,126.27,0.063]
[1743328197545,94.83359249,126.28,126.27,0.063]
[1743328198244,94.97575406,126.28,126.27,0.063]
[1743328208252,66.36964886,126.26,126.25,0.063]
[1743328208429,86.89179249,126.26,126.25,0.063]
[1743328208634,137.29996701,126.26,126.24,0.063]
[1743328208835,110.73021815,126.25,126.24,0.063]
[1743328209265,118.81537972,126.25,126.24,0.063]
[1743328210460,76.3279052,126.25,126.24,0.063]
[1743328211876,67.72,126.21,126.2,0.063]
[1743328212061,80.32204363,126.21,126.2,0.063]
[1743328219063,88.24534363,126.21,126.2,0.063]
[1743328223472,80.32204363,126.21,126.2,0.063]
[1743328224768,67.72,126.21,126.2,0.063]
[1743328224969,60.35204363,126.24,126.2,135.563]
[1743328225172,47.75,126.24,126.2,216.463]
[1743328225364,47.75,126.24,126.21,1.6617]
[1743328225675,47.75,126.24,126.22,7.9226]
[1743328226459,12.63204363,126.24,126.22,7.9226]
[1743328227676,60.32204363,126.23,126.21,1.6617]
[1743328227875,60.32204363,126.22,126.2,216.463]
[1743328228069,12.60204363,126.21,126.2,216.463]
[1743328229671,68.24534363,126.21,126.2,216.463]
[1743328230578,68.24534363,126.21,126.2,80.963]
[1743328231270,68.24534363,126.21,126.2,0.063]
[1743328232978,60.32204363,126.2,126.19,0.063]
[1743328233564,60.4642052,126.2,126.19,0.063]
[1743328234061,68.4072052,126.2,126.19,0.063]
[1743328235182,76.3311052,126.2,126.19,0.063]
[1743328240405,68.24594363,126.2,126.19,0.063]
[1743328245283,86.89559249,126.2,126.19,0.063]
[1743328245496,67.72,126.17,126.16,80.963]
[1743328245803,80.32204363,126.17,126.16,0.063]
[1743328246378,88.24784363,126.17,126.16,0.063]
[1743328253301,88.3900052,126.17,126.16,0.063]
[1743328253502,106.89749249,126.17,126.15,0.063]
[1743328253690,60.32204363,126.16,126.15,0.063]
[1743328254088,68.24844363,126.16,126.15,0.063]
[1743328259206,68.3906052,126.16,126.15,0.063]
[1743328259505,60.32204363,126.16,126.15,0.063]
[1743328259807,68.24844363,126.16,126.15,0.063]
[1743328261486,68.3906052,126.16,126.15,0.063]
[1743328268200,68.4206052,126.16,126.15,0.063]
[1743328268396,86.92809249,126.16,126.14,0.063]
[1743328268595,60.32204363,126.15,126.13,0.063]
[1743328268801,78.97169249,126.14,126.13,0.063]
[1743328268997,129.37986701,126.14,126.12,0.063]
[1743328269197,110.73021815,126.13,126.12,0.063]
[1743328270012,118.65851815,126.13,126.12,0.063]
[1743328271719,126.60151815,126.13,126.12,0.063]
[1743328272019,118.80067972,126.13,126.12,0.063]
[1743328272920,126.74367972,126.13,126.12,0.063]
[1743328273900,60.32204363,126.13,126.12,0.063]
[1743328276606,68.25034363,126.13,126.12,0.063]
[1743328280518,68.28034363,126.13,126.12,0.063]
[1743328284926,118.68851815,126.13,126.12,0.063]
[1743328285610,68.28034363,126.13,126.12,0.063]
[1743328286129,76.22334363,126.13,126.12,0.063]
[1743328297634,68.28034363,126.13,126.12,0.063]
[1743328297839,118.68851815,126.13,126.12,0.063]
[1743328298739,126.63151815,126.13,126.12,0.063]
[1743328301439,126.77367972,126.13,126.12,0.063]
[1743328305744,133.26530634,126.13,126.12,0.063]
[1743328306049,126.77367972,126.13,126.12,0.063]
[1743328317827,126.77367972,126.13,126.11,0.063]
[1743328317828,145.28116701,126.13,126.11,0.063]
[1743328318028,110.73021815,126.12,126.11,0.063]
[1743328318524,118.67321815,126.12,126.11,0.063]
[1743328318747,118.67321815,126.12,126.1,0.063]
[1743328319057,63.5925,126.11,126.1,0.063]
[1743328327046,55.6495,126.11,126.1,0.063]
[1743328327665,63.5925,126.11,126.1,0.063]
[1743328327857,63.6225,126.11,126.1,0.063]
[1743328329065,55.6795,126.11,126.1,0.063]
[1743328330166,63.6225,126.11,126.1,0.063]
[1743328331563,76.22454363,126.11,126.1,0.063]
[1743328337967,60.35204363,126.11,126.1,0.063]
[1743328338465,0.03,126.11,126.1,135.563]
[1743328338765,0.03,126.11,126.1,224.2584]
[1743328339456,0.03,126.11,126.1,232.1886]
[1743328339643,0.03,126.13,126.12,135.47]
[1743328342467,0.03,126.13,126.12,143.3989]
[1743328343373,12.52745482,126.14,126.12,143.3989]
[1743328344364,60.28204363,126.13,126.12,135.47]
[1743328344570,20.0,126.11,126.1,218.0502]
[1743328344772,32.60204363,126.11,126.1,218.0502]
[1743328347278,80.28204363,126.11,126.1,216.433]
[1743328347855,80.28204363,126.11,126.1,80.963]
[1743328349468,67.68,126.11,126.1,80.963]
[1743328351385,67.71,126.11,126.1,80.963]
[1743328351682,80.31204363,126.11,126.1,80.963]
[1743328353680,80.31204363,126.11,126.1,216.433]
[1743328365386,80.31204363,126.11,126.1,80.963]
[1743328371089,47.71,126.11,126.1,216.433]
[1743328371288,0.03,126.11,126.1,239.1631]
[1743328375771,0.03,126.11,126.1,257.81274886]
[1743328375977,0.03,126.14,126.12,135.47]
[1743328377204,0.03,126.14,126.13,7.9283]
[1743328380002,0.03,126.14,126.13,224.2983]
[1743328382997,0.03,126.14,126.13,225.9216]
[1743328383512,0.03,126.16,126.14,135.44]
[1743328383702,0.03,126.16,126.15,14.567]
[1743328386810,0.03,126.16,126.15,33.21664886]
[1743328388916,0.03,126.19,126.16,135.41]
[1743328389096,0.03,126.19,126.16,216.31]
[1743328390915,67.71,126.19,126.17,7.9258]
[1743328391117,0.03,126.19,126.17,7.9258]
[1743328391495,0.03,126.19,126.17,224.2358]
[1743328404329,32.63204363,126.19,126.17,216.31]
[1743328404620,12.60204363,126.18,126.17,216.31]
[1743328405818,12.63204363,126.19,126.17,216.31]
[1743328407427,12.60204363,126.18,126.17,216.31]
[1743328408124,0.03,126.19,126.17,216.31]
[1743328408125,12.63204363,126.19,126.17,216.31]
[1743328408328,12.60204363,126.18,126.17,216.31]
[1743328410434,12.63204363,126.19,126.17,216.31]
[1743328410640,0.03,126.19,126.18,7.9251]
[1743328415220,0.03,126.19,126.18,224.2351]
[1743328416707,12.63204363,126.19,126.18,216.31]
[1743328420035,0.03,126.19,126.18,224.2351]
[1743328423425,12.60204363,126.21,126.18,224.2351]
[1743328424236,12.60204363,126.22,126.18,224.2351]
[1743328426439,47.71,126.24,126.18,224.2351]
[1743328426440,32.60204363,126.21,126.18,224.2351]
[1743328427943,7.943,126.2,126.18,224.2351]
[1743328428244,32.60204363,126.21,126.18,224.2351]
[1743328429423,12.60204363,126.2,126.18,224.2351]
[1743328430860,12.60204363,126.19,126.18,216.31]
[1743328431861,12.60204363,126.2,126.18,224.2351]
[1743328432057,12.63204363,126.24,126.18,224.2351]
[1743328432229,12.63204363,126.24,126.19,18.64964886]
[1743328432428,12.63204363,126.24,126.21,7.9233]
[1743328432630,0.03,126.24,126.21,224.2333]
[1743328433129,0.03,126.24,126.22,18.64964886]
[1743328433343,0.03,126.24,126.22,236.54094886]
[1743328434941,0.03,126.24,126.23,7.922]
[1743328435325,0.03,126.24,126.23,26.855972]
[1743328435734,0.03,126.24,126.23,26.57164886]
[1743328438152,0.03,126.24,126.23,7.922]
[1743328438752,0.03,126.24,126.23,224.232]
[1743328440953,0.03,126.24,126.23,216.31]
[1743328444058,0.03,126.24,126.23,224.232]
[1743328470087,0.03,126.24,126.23,244.721972]
[1743328470389,0.03,126.24,126.23,245.00629514]
[1743328471872,0.03,126.26,126.25,18.64964886]
[1743328472066,0.03,126.26,126.25,114.08034886]
[1743328482687,0.03,126.27,126.26,143.3001]
[1743328483289,0.03,126.27,126.26,162.234072]
[1743328484275,0.03,126.27,126.26,243.104072]
[1743328485183,0.03,126.27,126.26,243.38839514]
[1743328485382,0.03,126.27,126.26,244.96229514]
[1743328488082,0.03,126.27,126.26,245.46229514]
[1743328488691,0.03,126.29,126.28,18.64964886]
[1743328488890,0.03,126.29,126.28,99.48964886]
[1743328489989,0.03,126.29,126.28,107.40854886]
[1743328490380,0.03,126.29,126.28,80.84]
[1743328490569,0.03,126.29,126.28,87.48]
[1743328491392,0.03,126.29,126.28,95.3989]
[1743328494469,0.03,126.29,126.28,230.7789]
[1743328506199,0.03,126.29,126.28,222.86]
[1743328506505,12.63204363,126.29,126.28,222.86]
[1743328511102,20.58104363,126.29,126.28,216.22]
[1743328511306,12.63204363,126.29,126.28,216.22]